Cogmind - Beta 17 @@@ ROGUE MODE // 2026.08.01 @ 12:40:20 Player: Afro Result: Destroyed by 8H-XZQ(R) with Subdweller Laser Performance ------------- Evolutions (0) 0 Regions Visited (2) 400 Robots Destroyed (27) 135 Value Destroyed (613) 613 Prototype IDs (0) 0 Alien Tech Used (0) 0 Bonus (0) 0 TOTAL SCORE: 1148 Bonus ------- None Cogmind --------- Core Integrity 0/250 Matter 290/300 Energy 55/200 System Corruption 0% Temperature Warm (188) Movement Core (700) Ox13 Location -10/Subcaves Parts ------- > --- POWER (1) -------- Subdweller Power Source > --- PROPULSION (2) --- Aluminum Leg Subdweller Monowheel > --- UTILITY (2) ------ Large Storage Unit Signal Interpreter > --- WEAPON (2) ------- Subdweller Beam Cannon Subdweller Beam Cannon > --- INVENTORY (15) --- Ion Engine Light Ion Engine Aluminum Leg Aluminum Leg Machine Analyzer Sensor Array Improved Terrain Scanner Seismic Detector Subdweller Laser Light Assault Rifle Light Assault Rifle Light Assault Rifle Grenade Launcher Mining Laser Peak State ------------ > --- POWER ------------ Light Nuclear Core > --- PROPULSION ------- Aluminum Leg Subdweller Monowheel > --- UTILITY ---------- Large Storage Unit Signal Interpreter > --- WEAPON ----------- Subdweller Laser Subdweller Beam Cannon > --- INVENTORY -------- Ion Engine Light Ion Engine Light Ion Engine Subdweller Power Source Aluminum Leg Aluminum Leg Machine Analyzer Sensor Array Improved Terrain Scanner Seismic Detector Light Assault Rifle Light Assault Rifle Light Assault Rifle Grenade Launcher Mining Laser [Rating: 14] Favorites ----------- Power Light Ion Engine Engine Light Ion Engine Power Core Light Nuclear Core Propulsion Light Treads Treads Light Treads Leg Aluminum Leg Wheel Subdweller Monowheel Utility Seismic Detector Device Seismic Detector Storage Huge Storage Unit Processor Signal Interpreter Weapon Assault Rifle Energy Gun Medium Laser Energy Cannon Subdweller Beam Cannon Ballistic Gun Assault Rifle Launcher Grenade Launcher Special Weapon Welding Torch Build | -11 -10 -10 ------- Run | Yrd Mat Sub Slots Evolved . | . . . Power . | . . . Propulsion . | . . . Utility . | . . . Weapon . | . . . Parts Attached 36 | 11 15 10 Power 6 | 1 2 3 Engine 5 | 1 2 2 Core 1 | . . 1 Reactor . | . . . Propulsion 8 | 3 3 2 Treads 3 | 2 1 . Leg 4 | 1 2 1 Wheel 1 | . . 1 Hover . | . . . Flight . | . . . Utility 8 | 4 4 . Device 3 | 2 1 . Storage 4 | 2 2 . Processor 1 | . 1 . Hackware . | . . . Protection . | . . . Artifact . | . . . Weapon 14 | 3 6 5 Energy Gun 3 | 2 . 1 Energy Cannon 2 | . . 2 Ballistic Gun 4 | 1 1 2 Ballistic Cannon . | . . . Launcher 1 | . 1 . Special Weapon 4 | . 4 . Impact Weapon . | . . . Slashing Weapon . | . . . Piercing Weapon . | . . . Special Melee Weapon . | . . . Unidentified Prototypes . | . . . Parts Lost 8 | . 4 4 Power 4 | . 1 3 Propulsion . | . . . Utility 1 | . 1 . Weapon 3 | . 2 1 Highest Loss Streak 3 | . 3 3 To Critical Strikes . | . . . Average Backups 12 | 4 12 13 Power 3 | 1 4 3 Propulsion 3 | 1 4 2 Utility 1 | . 1 3 Weapon 2 | . 2 4 Tool/Special . | . . . Unused Backups 9 | . 3 6 Power 3 | . 1 2 Propulsion 2 | . 1 1 Utility 4 | . 1 3 Weapon . | . . . Tool/Special . | . . . Average Slot Usage (%) 99 | . 99 99 Engine 11 | . 14 4 Core 2 | . . 9 Treads 19 | . 25 . Leg 7 | . 2 24 Device 10 | . 13 . Storage 14 | . 14 14 Processor 3 | . . 14 Energy Gun 5 | . 7 1 Energy Cannon 3 | . . 15 Ballistic Gun 14 | . 16 11 Special Weapon 3 | . 4 . Peak Build Rating 14 | 7 8 14 Average Rating 8 | 6 7 11 On Entrance 5 | . 7 8 Avg Prop Armor Cover (%) 10 | . . 10 Naked Turns . | . . . Heaviest Build 88 | 13 88 39 Greatest Support 40 | 40 40 20 Greatest Overweight (x) 12 | . 2 12 Average Overweight (x) . | . 1 1 Largest Inventory Capacity 25 | 8 25 15 Average Capacity 18 | 7 20 15 Most Carried 15 | 7 15 15 Average Carried 12 | 4 12 13 Final Capacity 15 | 8 15 15 Final Carried 15 | 7 15 14 Class Distribution -------------------- 77% | Mutant 22% | Scavenger-Mutant Dominant Class ---------------- Mutant | -10/Materials Scavenger-Mutant | -10/Subcaves Resources | -11 -10 -10 ----------- Run | Yrd Mat Sub Matter Collected 832 | 355 320 157 Remotely 263 | 168 95 . Salvage Created 765 | 159 372 234 Parts 60 | 11 30 19 Haulers Intercepted . | . . . Recyclers Shooed 3 | . 3 . Parts Field Recycled . | . . . Retrieved Matter . | . . . Parts Self-Destructed 12 | . . 12 Prevented . | . . . Parts Restored . | . . . Kills | -11 -10 -10 ------- Run | Yrd Mat Sub Combat Hostiles Destroyed 18 | . 11 7 Guns 9 | . 6 3 Cannons 3 | . 1 2 AOE 6 | . 4 2 Classes Destroyed 7 | 3 3 1 Worker 3 | 1 2 . Tunneler 3 | 3 . . Recycler 2 | 1 1 . Watcher 1 | . 1 . Swarmer 6 | . 3 3 Grunt 8 | . 8 . Subdweller 4 | . . 4 Best Kill Streak 4 | 1 4 3 Combat Bots Only 3 | . 3 3 Max Kills in Single Turn 3 | 1 3 3 Gunslinging . | . . . Exploded 3 | . 3 2 Melee . | . . . Uniques/NPCs Destroyed . | . . . Combat | -11 -10 -10 -------- Run | Yrd Mat Sub Hostile Shots Fired 96 | . 54 42 Missed 27 | . 13 14 Hits 69 | . 41 28 Projectile 69 | . 41 28 Critical Strikes 2 | . 1 1 Damage Taken 1194 | . 602 592 Core 255 | . 97 158 Absorbed by Shields . | . . . Core Remaining (%) 100 | 100 . . Volleys Fired 75 | 16 38 21 Largest 2 | 2 2 2 Hottest 160 | 70 120 160 Shots Fired 135 | 32 65 38 Gun 104 | 32 48 24 Cannon 13 | . . 13 Launcher 6 | . 5 1 Special 12 | . 12 . Kinetic 78 | 16 42 20 Thermal 51 | 16 18 17 Explosive 6 | . 5 1 Electromagnetic . | . . . Robot Hit Streak 23 | 6 10 23 Robot Miss Streak 4 | 3 4 1 Penetration Max . | . . . Secondary Targets . | . . . Shots Hit Robots 88 | 18 38 32 Core Hits 46 | 6 28 12 Critical Kills . | . . . Critical Parts Destroyed . | . . . Critical Strikes 2 | 2 . . Burn 2 | 2 . . Melee Attacks . | . . . Impact . | . . . Slashing . | . . . Piercing . | . . . Sneak Attacks . | . . . Combat Hostiles . | . . . Follow-up Attacks . | . . . Damage Inflicted 1748 | 231 886 631 Guns 851 | 231 393 227 Cannons 270 | . . 270 Explosions 493 | . 359 134 Melee . | . . . Ramming 54 | . 54 . Kinetic 584 | 105 318 161 Thermal 617 | 126 155 336 Explosive 493 | . 359 134 Electromagnetic . | . . . Impact . | . . . Slashing . | . . . Piercing . | . . . Highest Corruption . | . . . Average Corruption . | . . . Corruption Purged . | . . . Corruption Blocked . | . . . Overload Shots . | . . . Overflow Damage . | . . . Projectiles . | . . . Explosions . | . . . Melee . | . . . Knockbacks 1 | . 1 . Impact 1 | . 1 . Kinetic . | . . . Secondary . | . . . Self-Inflicted Damage 67 | . 67 . Shots 3 | . 3 . Rammed 9 | . 9 . Targets Rammed 10 | . 10 . Kicked . | . . . Crushed 1 | . 1 . Highest Temperature 244 | 36 121 244 Average Temperature 34 | 13 30 71 Received Heat Transfer 731 | . 309 422 Siege Activations . | . . . Martial Activations . | . . . Shielding Activations . | . . . Robots Disrupted . | . . . Combat Hostiles . | . . . Robots Corrupted . | . . . Combat Hostiles . | . . . Parts Fried . | . . . Impact Corruptions . | . . . Robots Melted . | . . . Combat Hostiles . | . . . Parts Melted 2 | 1 . 1 Heat Transferred 1385 | 518 422 445 Parts Sabotaged . | . . . Parts Stolen . | . . . Parts Stripped . | . . . Power Chain Reactions . | . . . Alert | -11 -10 -10 ------- Run | Yrd Mat Sub Maximum Alert Level . | . . . Low Security (%) 100 | 100 100 . Level 1 . | . . . Level 2 . | . . . Level 3 . | . . . Level 4 . | . . . Level 5 . | . . . High Security . | . . . Max Security . | . . . Peak Influence 147 | 5 147 . Initial . | . . . Average 42 | . 48 . Influence Increases 523 | 25 408 90 Destroy 0b10 Robot/C 280 | . 220 60 Destroy 0b10 Robot/NC 45 | 25 20 . Destroy Leader 62 | . 62 . Successful Hack 24 | . 24 . Disable Machine 45 | . 45 . Destroy Structure 37 | . 37 . Lose Combat Pursuer 30 | . . 30 Influence Decreases 523 | 25 291 207 Entered New Map 57 | . . 57 Time Decay 396 | 25 251 120 Lost Part 70 | . 40 30 Squads Dispatched 4 | . 4 . Investigation 1 | . 1 . Extermination . | . . . Reinforcement 3 | . 3 . Assault . | . . . Garrison . | . . . Intercept . | . . . Searches Triggered . | . . . Construction Impeded . | . . . Haulers Reinforced . | . . . Active Scanning Responses . | . . . Cargo Convoy Interrupts . | . . . Stealth | -11 -10 -10 --------- Run | Yrd Mat Sub Distress Signals 1 | . 1 . Communications Jammed . | . . . Distress Signals . | . . . Times Spotted 38 | . 27 11 Peak Tracking Total 6 | . 4 6 Tactical Retreats 1 | . . 1 Traps | -11 -10 -10 ------- Run | Yrd Mat Sub Traps Triggered 1 | . 1 . Indirectly . | . . . Trap Hack Attempts . | . . . Triggered . | . . . Disarmed . | . . . Reprogrammed . | . . . Reused . | . . . Traps Extracted . | . . . Installed . | . . . Triggered . | . . . Machines | -11 -10 -10 ---------- Run | Yrd Mat Sub Machines Disabled 3 | . 3 . Max in Single Turn 1 | . 1 . Machines Repaired . | . . . Machines Dismantled . | . . . Machines Sabotaged . | . . . Overloaded Fab Kills . | . . . Hacking | -11 -10 -10 --------- Run | Yrd Mat Sub Machines Accessed 4 | . 4 . Terminals 3 | . 3 . Fabricators . | . . . Repair Stations . | . . . Recycling Units 1 | . 1 . Scanalyzers . | . . . Garrison Access . | . . . Total Hacks 8 | . 8 . Successful 5 | . 5 . Failed 3 | . 3 . Catastrophic 1 | . 1 . Database Lockouts . | . . . Manual 5 | . 5 . Terminals 6 | . 6 . Fabricators . | . . . Repair Stations . | . . . Recycling Units 2 | . 2 . Scanalyzers . | . . . Garrison Access . | . . . Terminal Hacks 1 | . 1 . Record 1 | . 1 . Fabricator Hacks . | . . . Repair Station Hacks . | . . . Recycling Unit Hacks 2 | . 2 . Report Inventory 1 | . 1 . Retrieve Components 1 | . 1 . Scanalyzer . | . . . Garrison Access Hacks . | . . . Unauthorized Hacks 2 | . 2 . Terminals 2 | . 2 . Assimilate 2 | . 2 . Fabricators . | . . . Repair Stations . | . . . Recycling Units . | . . . Scanalyzers . | . . . Garrison Access . | . . . Data Cores Recovered . | . . . Used . | . . . Hacking Detections 3 | . 3 . Full Trace Events . | . . . Feedback Events . | . . . Feedback Blocked . | . . . Robot Schematics Acquired . | . . . Robots Built . | . . . Authchips . | . . . Time . | . . . Total Robot Build Rating . | . . . Part Schematics Acquired . | . . . Parts Built . | . . . Authchips . | . . . Time . | . . . Total Part Build Rating . | . . . Part Studies Acquired . | . . . Parts Repaired . | . . . Time . | . . . Parts Recycled . | . . . Recycled Matter . | . . . Retrieved Matter . | . . . Retrieved Components 9 | . 9 . Parts Scanalyzed . | . . . Part Schematics Acquired . | . . . Parts Damaged . | . . . Bothacking | -11 -10 -10 ------------ Run | Yrd Mat Sub Used RIF Installer . | . . . Robots Hacked . | . . . Non-combat . | . . . Combat . | . . . Robot Hacks Applied . | . . . Relay Couplers Released . | . . . Fabnet Peak Effective % . | . . . Robots Rewired . | . . . Allies Hacked . | . . . Hacks Repelled . | . . . Allies | -11 -10 -10 -------- Run | Yrd Mat Sub Total Allies . | . . . Largest Group . | . . . Highest-Rated Group . | . . . Highest-Rated Ally . | . . . Total Orders . | . . . Ally Attacks . | . . . Total Damage . | . . . Kills . | . . . Allies Corrupted . | . . . Allies Melted . | . . . Intel | -11 -10 -10 ------- Run | Yrd Mat Sub Active Infowar (turns) 1881 | 21 1860 . Seismic 1881 | 21 1860 . Robot Analysis Total . | . . . Derelict Logs Recovered . | . . . Drone Launches . | . . . Drone Recoveries . | . . . Exploration | -11 -10 -10 ------------- Run | Yrd Mat Sub Turns Passed 3150 | 265 2193 692 Spaces Moved 1309 | 130 826 353 Core 14 | 12 . 2 Treads 846 | 112 734 . Legs 335 | 6 92 237 Wheels 114 | . . 114 Hover . | . . . Flight . | . . . Fastest Speed 50 | 50 160 120 Average Speed 212 | 148 240 170 Slowest Speed 650 | 160 320 650 Overloaded Moves . | . . . Propulsion Burnouts . | . . . Robots Hopped . | . . . Potential Cave-ins . | . . . Cave-ins Triggered . | . . . Exploration Rate (%) 39 | 6 93 18 Regions Visited 2 Branch Regions 1 Pre-discovered Areas . | . . . Known Exits Taken 1 | . 1 . Unknown Exits Taken 1 | 1 . . Scrap Searched . | . . . Spaces Dug . | . . . Terrain Destroyed 41 | . 37 4 Melee . | . . . Projectile . | . . . AOE 41 | . 37 4 Terrain Rammed . | . . . Walls Destroyed . | . . . Machines Disabled . | . . . Actions | -11 -10 -10 --------- Run | Yrd Mat Sub Total 1521 | 169 944 408 Wait 30 | . 17 13 Move 1307 | 129 825 353 Hop . | . . . Pick Up 35 | 10 21 4 Fast Attach 10 | 6 2 2 Attach 17 | 4 8 5 Detach 3 | 1 1 1 Swap 16 | 1 9 6 Drop 18 | 2 13 3 Fire 75 | 16 38 21 Melee . | . . . Ram . | . . . Kick . | . . . Crush 10 | . 10 . Escape Stasis . | . . . Rewire . | . . . Trap . | . . . Miscellaneous . | . . . Route ------- -11/Scrapyard -10/Materials (discovered 6 exits: [*Mat x3] / [*Min x2] / *Sub) -10/Subcaves History --------- Turn | Location | Event 46 | -11/Scrapyard | Discovered new exit (range 15) 266 | -11/Scrapyard | Entered Materials 267 | -10/Materials | Met a group of wandering Federalists 277 | -10/Materials | Discovered new exit (range 15) 305 | -10/Materials | Build established: Mutant 458 | -10/Materials | Discovered new exit (range 14) 852 | -10/Materials | Discovered new exit (range 3) 929 | -10/Materials | Discovered new exit (range 5) 1456 | -10/Materials | Lost 3 parts (1u2w) 1491 | -10/Materials | Discovered new exit (range 15) 1835 | -10/Materials | Discovered new exit (range 16) 2457 | -10/Materials | Identified exit to Subcaves 2459 | -10/Materials | Entered Subcaves 2460 | -10/Subcaves | Continued accompanying wandering Federalists (2) 2460 | -10/Subcaves | Approached by a straggling Scientist 2495 | -10/Subcaves | Core integrity fell below 50% 2515 | -10/Subcaves | Lost 3 allies 2535 | -10/Subcaves | Lost 3 parts (2p1w) 2744 | -10/Subcaves | Build established: Scavenger-Mutant 2968 | -10/Subcaves | Disturbed a concealed Subdweller 2998 | -10/Subcaves | Core integrity fell below 20% 3151 | -10/Subcaves | Destroyed by 8H-XZQ(R) with Subdweller Laser Last Messages --------------- 02962_ Dropped Aluminum Leg. 02963_ Acquired Sub. Monowheel. 02964_ Acquired 10 matter. 02968_ Y9-ZVF(R) angrily emerges from the Twisted Machinery. 02981_ Y9-ZVF(R) affixes Scrap Shield Fragment to Scrap Shield. 02986_ Subatomizers dissect the Aluminum Leg. 02989_ Dropped Lgt. Nuclear Core. 02998_ Subatomizers dissect the Aluminum Leg. 02998_ Sub. Power Source melted. 02998_ Y9-ZVF(R) destroyed. 03003_ Acquired Sub. Beam Cannon. 03007_ Acquired 20 matter. 03008_ Subatomizers dissect the Lgt. Nuclear Core. 03125_ Sub. Monowheel shoots sparks and powers down. 03126_ 8H-XZQ(R): "OHNO!" 03149_ Lgt. Ion Engine destroyed. Map ----- +----------------------------------------------------+ | ?????????????????????????????????????????????????? | | ?????????????????????????????????????????????????? | | ?????????????????????????????????????????????????? | | ?????????????????????????????????????????????????? | | ?????????????????????????????????????????????????? | | ?????????????????????????????????????????????????? | | ?????????????????????????????????????????????????? | | ?????????????????????????????????????????????????? | | ?????????????????????????????????????????????????? | | ?????????????????????????????????????????????????? | | ?????????????????????????????????????????????????? | | ?????????????????????????????????????????????????? | | ?????????????????????????????????????????????????? | | ?????????????????????????????????????????????????? | | ?????????????????????????????????????????????????? | | ?????????????????????????????????????????????????? | | ?????????????????????????????????????????????????? | | ????????????????????????????????? ???????????????? | | ???????????????????????????????? %???????????????? | | ???????????????????????????????? ##?????????????? | | ?????????????????????????###????# #??????""?????# | | ????????????????????????## ????# #??????" "???## | | ???????????????????????## #????# #??????#""#?## | | ???????????????????????# #???? ##?????##""## | | ????????????????????????# #????# ####### " | | ???????????????????????##@ ###### ## #" " | | ??????????????????""#### # ## ""#"#" | | ??????????????????"" ""R ## ""##### | | ?????????????????? """ " " ### "" | | ?????????????????? "## ### | | ?????????????????# ##?##" # | | ?????????????????# ?????#### ######## | | ????????????????? ????????## ######??????? | | ????????????????#????????## ##???????????? | | ????????????????????????## ## #????????????? | | ????????????????????????# ### #????????????? | | ????????????????????????# #?# #????????????? | | ????????????????????????# ### #????????????? | | ????????????????????????# ### #????????????? | | ????????????????????????## #?#####????????????? | | ?????????????????????????######??????????????????? | | ?????????????????????????????????????????????????? | | ?????????????????????????????????????????????????? | | ?????????????????????????????????????????????????? | | ?????????????????????????????????????????????????? | | ?????????????????????????????????????????????????? | | ?????????????????????????????????????????????????? | | ?????????????????????????????????????????????????? | | ?????????????????????????????????????????????????? | | ?????????????????????????????????????????????????? | +----------------------------------------------------+ Best States ------------- Heat Dissipation 25 Energy Generation 14 Energy Capacity 250 Matter Stores 300 Matter Capacity 300 Sight Range 16 Terrain Scan Density 10 Evasion (%) 50 Recoil Reduction 2 Item Schematics ----------------- None Robot Schematics ------------------ None Fabricated ------------ Nothing Repaired ---------- Nothing Studied --------- None Alien Tech Used ----------------- None Achievements -------------- None Challenges ------------ None Game ------ Seed CarbideAntisysInverter Manual? 0 Play Time 00:23:24 Cumulative 58.6 hours Start 2026.08.01 @ 10:26:31 End 2026.08.01 @ 12:40:20 Sessions 2 Manual Loads 0 Difficulty Rogue Special Mode None Game No. 54 Rogue 54 Adventurer 0 Explorer 0 Win Type - Total 0 Types 0/0/0/0/0/0/0/0/0/0 Lore% 10 Gallery% 28 Achievement% 21 Wizard Run 0 Options --------- Layout 1 ASCII 0 Keyboard 0 Movement Mouse Keybinds 0 Fullscreen 2 Font 24/Smallcaps Map View 50x35 Zoom Use 0% Tactical HUD 1 Map Filters NONE Filters NONE Steam 1 RUN: 76cbe32a-7342-47d8-97f7-d1baafbada8d